fUST/lending_fUST_20250903
["ID","MTS","AMOUNT","RATE_DAILY","PERIOD"]
[383359859,1756912253187,-1029.83,0.0001452,2]
[383359861,1756912253196,-151.0,0.0001452,2]
[383359863,1756912253206,-597.9863085,0.0001452,2]
[383359865,1756912253215,-228.525679,0.0001452,2]
[383359867,1756912253224,-241.790226,0.0001452,2]
[383359869,1756912253234,-228.525679,0.0001452,2]
[383359871,1756912253243,-241.790226,0.0001452,2]
[383359873,1756912253252,-228.525679,0.0001452,2]
[383359875,1756912253262,-151.0,0.0001452,2]
[383359877,1756912253271,-241.790226,0.0001452,2]
[383359879,1756912253281,-228.525679,0.0001452,2]
[383359881,1756912253290,-151.0,0.0001452,2]
[383359883,1756912253300,-480.0,0.0001452,2]
[383359885,1756912253309,-241.790226,0.0001452,2]
[383359887,1756912253318,-480.0,0.0001452,2]
[383359889,1756912253328,-480.0,0.0001452,2]
[383359891,1756912253337,-480.0,0.0001452,2]
[383359893,1756912253347,-480.0,0.0001452,2]
[383359895,1756912253357,-480.0,0.0001452,2]
[383359897,1756912253366,-480.0,0.0001452,2]
[383359899,1756912253376,-480.0,0.0001452,2]
[383359901,1756912253386,-480.0,0.0001452,2]
[383359903,1756912253396,-480.0,0.0001452,2]
[383359905,1756912253405,-480.0,0.0001452,2]
[383359907,1756912253415,-596.792591,0.0001452,2]
[383359909,1756912253424,-596.792591,0.0001452,2]
[383359911,1756912253434,-480.0,0.0001452,2]
[383359913,1756912253443,-596.792591,0.0001452,2]
[383359915,1756912253452,-596.792591,0.0001452,2]
[383359916,1756912253462,-480.0,0.0001452,2]
[383359918,1756912253472,-312.10125981,0.0001452,2]
[383359920,1756912253481,-480.0,0.0001452,2]
[383359922,1756912253491,-480.0,0.0001452,2]
[383359924,1756912253500,-480.0,0.0001452,2]
[383359926,1756912253509,-480.0,0.0001452,2]
[383359928,1756912253519,-484.48363425,0.0001452,2]
[383359930,1756912253531,-480.0,0.0001452,2]
[383359932,1756912253541,-480.0,0.0001452,2]
[383359934,1756912253550,-151.0,0.0001452,2]
[383359936,1756912253559,-480.0,0.0001452,2]
[383359938,1756912253568,-480.0,0.0001452,2]
[383359940,1756912253577,-480.0,0.0001452,2]
[383359942,1756912253587,-480.0,0.0001452,2]
[383359944,1756912253596,-480.0,0.0001452,2]
[383359946,1756912253606,-480.0,0.0001452,2]
[383359948,1756912253616,-480.0,0.0001452,2]
[383359950,1756912253626,-480.0,0.0001452,2]
[383359952,1756912253635,-480.0,0.0001452,2]
[383359954,1756912253644,-480.0,0.0001452,2]
[383359956,1756912253654,-622.44585856,0.0001452,2]
[383359959,1756912253664,-480.0,0.0001452,2]
[383359961,1756912253673,-480.0,0.0001452,2]
[383359962,1756912253682,-480.0,0.0001452,2]
[383359965,1756912253691,-480.0,0.0001452,2]
[383359966,1756912253700,-480.0,0.0001452,2]
[383359969,1756912253710,-480.0,0.0001452,2]
[383359971,1756912253719,-480.0,0.0001452,2]
[383359973,1756912253729,-480.0,0.0001452,2]
[383359975,1756912253738,-480.0,0.0001452,2]
[383359977,1756912253748,-621.47,0.0001452,2]
[383359979,1756912253757,-480.0,0.0001452,2]
[383359980,1756912253767,-480.0,0.0001452,2]
[383359982,1756912253777,-480.0,0.0001452,2]
[383359984,1756912253787,-480.0,0.0001452,2]
[383359986,1756912253796,-151.0,0.0001452,2]
[383359988,1756912253805,-480.0,0.0001452,2]
[383359991,1756912253815,-151.0,0.0001452,2]
[383359992,1756912253824,-480.0,0.0001452,2]
[383359994,1756912253834,-530.53700526,0.0001452,2]
[383359996,1756912253844,-480.0,0.0001452,2]
[383359997,1756912253853,-480.0,0.0001452,2]
[383359998,1756912253863,-480.0,0.0001452,2]
[383359999,1756912253872,-480.0,0.0001452,2]
[383360001,1756912253882,-568.49,0.0001452,2]
[383360003,1756912253892,-496.64312414,0.0001452,2]
[383360005,1756912253901,-480.0,0.0001452,2]
[383360006,1756912253911,-480.0,0.0001452,2]
[383360008,1756912253921,-480.0,0.0001452,2]
[383360010,1756912253931,-480.0,0.0001452,2]
[383360012,1756912253940,-480.0,0.0001452,2]
[383360014,1756912253950,-480.0,0.0001452,2]
[383360015,1756912253959,-237.581551,0.0001452,2]
[383360016,1756912253969,-480.0,0.0001452,2]
[383360017,1756912253979,-237.581551,0.0001452,2]
[383360019,1756912253988,-1000.0,0.00014521,2]
[383360021,1756912253999,-204.62,0.00014527,2]
[383360022,1756912254008,-204.62,0.00014527,2]
[383360023,1756912254018,-204.62,0.00014527,2]
[383360024,1756912254027,-204.62,0.00014527,2]
[383360025,1756912254038,-204.62,0.00014527,2]
[383360026,1756912254048,-204.62,0.00014527,2]
[383360027,1756912254058,-204.62,0.00014527,2]
[383360028,1756912254158,-159.98,0.00014527,2]
[383360029,1756912254169,-861.1878846,0.00014527,2]
[383360030,1756912254179,-341.21,0.00014642,2]
[383360031,1756912254188,-341.21,0.00014656,2]
[383360032,1756912254198,-153.990148,0.00014713,2]
[383360033,1756912254208,-151.0,0.00014713,2]
[383360034,1756912254218,-151.0,0.00014713,2]
[383360035,1756912254228,-500.0,0.00014713,2]
[383360036,1756912254238,-480.0,0.00014794,2]
[383360037,1756912254247,-480.0,0.00014794,2]
[383360038,1756912254257,-509.46,0.00014794,2]
[383360040,1756912254268,-480.0,0.00014794,2]
[383360042,1756912254278,-480.0,0.00014794,2]
[383360044,1756912254289,-480.0,0.00014794,2]
[383360046,1756912254299,-480.0,0.00014794,2]
[383360047,1756912254309,-480.0,0.00014794,2]
[383360048,1756912254319,-480.0,0.00014794,2]
[383360049,1756912254330,-480.0,0.00014794,2]
[383360050,1756912254340,-1029.83,0.00014794,2]
[383360051,1756912254350,-480.0,0.00014794,2]
[383360052,1756912254360,-480.0,0.00014794,2]
[383360053,1756912254369,-560.05502785,0.00014794,2]
[383360054,1756912254381,-270.4307507,0.00014794,2]
[383360055,1756912254390,-480.0,0.00014794,2]
[383360056,1756912254400,-480.0,0.00014794,2]
[383360057,1756912254410,-453.97458118,0.00014794,2]
[383360058,1756912254420,-480.0,0.00014794,2]
[383360059,1756912254431,-480.0,0.00014794,2]
[383360060,1756912254441,-480.0,0.00014794,2]
[383360061,1756912254451,-437.93,0.00014794,2]
[383360062,1756912254461,-480.0,0.00014794,2]
[383360063,1756912254471,-480.0,0.00014794,2]
[383360064,1756912254481,-393.48931651,0.00014794,2]
[383360065,1756912254626,-86.51068349,0.00014794,2]
[383360066,1756912254636,-245.00105399,0.00014873,2]
[383360067,1756912254645,-260.0,0.0001498,2]
[383360068,1756912254655,-160.0,0.00015,2]
[383360069,1756912254665,-480.0,0.00015068,2]
[383360070,1756912254675,-480.0,0.00015068,2]
[383360071,1756912254684,-480.0,0.00015068,2]
[383360072,1756912254694,-480.0,0.00015068,2]
[383360073,1756912254703,-427.48237484,0.00015068,2]
[383360074,1756912254713,-480.0,0.00015068,2]
[383360075,1756912254723,-142.54823707,0.00015068,2]
[383360183,1756912257046,986.06584874,0.00013573,2]
[383360649,1756912287170,9013.94415126,0.00013498,2]
[383360650,1756912287196,10000.01,0.00013498,2]
[383360651,1756912287221,10000.01,0.00013498,2]
[383360652,1756912287246,10000.01,0.00013498,2]
[383360653,1756912287272,10000.01,0.00013498,2]
[383360654,1756912287298,10000.01,0.00013498,2]
[383360655,1756912287324,10000.01,0.00013498,2]
[383360656,1756912287350,10000.01,0.00013498,2]
[383360657,1756912287376,10000.01,0.00013498,2]
[383360658,1756912287401,10000.01,0.00013498,2]
[383360659,1756912287432,1000.0,0.00013498,2]
[383360660,1756912313407,2602.30846553,0.00013363,2]
[383360661,1756912323326,300.0,0.00013497,2]
[383360662,1756912328041,1200.0,0.00013497,2]
[383360910,1756912351886,500.0,0.00013497,2]
[383360913,1756912351918,381.23225335,0.00013497,2]
[383360916,1756912351962,500.0,0.00013497,2]
[383360919,1756912352022,500.0,0.00013497,2]
[383360922,1756912352064,500.0,0.00013497,2]
[383360925,1756912352116,500.0,0.00013497,2]
[383360928,1756912352151,500.0,0.00013497,2]
[383360936,1756912352313,500.0,0.00013497,2]
[383360943,1756912352455,500.0,0.00013497,2]
[383360947,1756912352524,500.0,0.00013497,2]
[383360951,1756912352594,500.0,0.00013497,2]
[383360963,1756912352839,500.0,0.00013497,2]
[383360965,1756912352875,16.46928112,0.00013497,2]
[383360968,1756912352902,601.63660924,0.00013497,2]
[383361019,1756912354109,638.61784129,0.00013497,2]
[383361022,1756912354143,320.0,0.00013497,2]
[383361024,1756912354185,500.0,0.00013497,2]
[383361027,1756912354222,390.07730115,0.00013497,2]
[383361029,1756912354259,568.13565005,0.00013497,2]
[383361030,1756912354300,304.58235978,0.00013497,2]
[383361500,1756912368908,500.0,0.00013497,2]
[383361501,1756912368954,500.0,0.00013497,2]
[383361502,1756912368989,500.0,0.00013497,2]
[383361503,1756912369040,500.0,0.00013497,2]
[383361504,1756912369123,500.0,0.00013497,2]
[383361505,1756912369319,282.67412326,0.00013497,2]
[383361506,1756912369448,500.0,0.00013497,2]
[383361507,1756912369563,500.0,0.00013497,2]
[383361508,1756912369679,500.0,0.00013497,2]
[383361512,1756912383096,300.0,0.00013497,2]
[383361513,1756912386689,450.0,0.00013497,2]
[383361514,1756912389083,151.0,0.00027397,120]
[383361515,1756912391121,233.98,0.00012329,2]
[383361516,1756912397201,1410.30611523,0.00013363,2]
[383361517,1756912397228,1682.05708077,0.00013363,2]
[383361518,1756912401601,194.98,0.00012329,2]
[383361519,1756912412034,162.49,0.00012329,2]
[383361520,1756912413612,500.0,0.00013497,2]
[383361678,1756912420638,3610.45148996,0.00013363,2]
[383361679,1756912422481,812.46,0.00012329,2]
[383361680,1756912423147,500.0,0.00013497,2]
[383361681,1756912428581,657.59073486,0.00013363,2]
[383361682,1756912431431,411.65495941,0.00013497,2]
[383361683,1756912433530,249.70200246,0.00013497,2]
[383361684,1756912433575,500.0,0.00013497,2]
[383361685,1756912433612,500.0,0.00013497,2]
[383361686,1756912433644,218.62373254,0.00013497,2]
[383361687,1756912433670,281.37626746,0.00013497,2]
[383361688,1756912433707,478.46634415,0.00013497,2]
[383361689,1756912433740,500.0,0.00013497,2]
[383361690,1756912433777,500.0,0.00013497,2]
[383361691,1756912433810,500.0,0.00013497,2]
[383361692,1756912433843,233.60786497,0.00013497,2]
[383361693,1756912441687,500.0,0.00013497,2]
[383361694,1756912442973,300.0,0.00013497,2]
[383361695,1756912451714,500.0,0.00013497,2]
[383361696,1756912451763,500.0,0.00013497,2]
[383361697,1756912451820,500.0,0.00013497,2]
[383361698,1756912502522,300.0,0.00013497,2]
[383361699,1756912502571,300.0,0.00013497,2]
[383361700,1756912502601,300.0,0.00013497,2]
[383361701,1756912508643,1777.50822151,0.00013473,2]
[383361702,1756912509914,1200.0,0.00013497,2]
[383361703,1756912514832,158.0,0.000273,120]
[383361704,1756912518552,500.0,0.00013497,2]
[383361705,1756912518624,515.955952,0.00013497,2]
[383361706,1756912519506,313.09534991,0.00013497,2]
[383361707,1756912519535,163.2169853,0.00013497,2]
[383361708,1756912546456,158.0,0.000134,2]
[383361709,1756912547275,158.0,0.000134,2]
[383361710,1756912563513,300.0,0.00013497,2]
[383361711,1756912574183,158.0,0.000152,6]
[383361712,1756912575587,158.0,0.000152,6]
[383361713,1756912601279,151.0,0.00013,2]
[383361714,1756912614849,160.0,0.000134,3]
[383361715,1756912616050,160.0,0.000134,3]
[383361716,1756912622679,300.0,0.00013497,2]
[383361717,1756912629684,177.8629953,0.00012793,2]
[383361718,1756912638502,160.0,0.000144,4]
[383361719,1756912649620,666.0,0.00012692,2]
[383361720,1756912682775,300.0,0.00013497,2]
[383361721,1756912736806,2304.64454339,0.00013498,2]
[383361722,1756912742520,300.0,0.00013497,2]
[383361723,1756912778888,1610.25261735,0.00013423,2]
[383361724,1756912802770,300.0,0.00013497,2]
[383361725,1756912802964,300.0,0.00013497,2]
[383361726,1756912803014,300.0,0.00013497,2]
[383361727,1756912803488,300.0,0.00013497,2]
[383361728,1756912803669,300.0,0.00013497,2]
[383361729,1756912810949,1200.0,0.00013497,2]
[383361730,1756912862631,300.0,0.00013497,2]
[383361993,1756912922861,91.03285866,0.00013497,2]
[383361995,1756912922891,208.96714134,0.00013497,2]
[383362984,1756912983615,300.0,0.00013497,2]
[383363526,1756912996869,7221.640205,0.00012635,2]
[383364037,1756913014298,500.0,0.00013497,2]
[383364038,1756913014429,500.0,0.00013497,2]
[383364039,1756913014555,500.0,0.00013497,2]
[383364040,1756913014755,500.0,0.00013497,2]
[383364041,1756913014844,269.40265366,0.00013497,2]
[383364042,1756913014869,230.59734634,0.00013497,2]
[383364043,1756913015298,500.0,0.00013497,2]
[383364044,1756913015329,500.0,0.00013497,2]
[383364045,1756913015359,378.03545599,0.00013497,2]
[383364046,1756913015468,500.0,0.00013497,2]
[383364048,1756913024312,500.0,0.00013497,2]
[383364049,1756913032097,278.33799881,0.00013497,2]
[383364050,1756913032216,500.0,0.00013497,2]
[383364051,1756913032263,500.0,0.00013497,2]
[383364052,1756913032303,500.0,0.00013497,2]
[383364053,1756913032359,228.87907513,0.00013497,2]
[383364054,1756913032566,500.0,0.00013497,2]
[383364055,1756913032618,500.0,0.00013497,2]
[383364056,1756913033487,553.69664648,0.00013497,2]
[383364057,1756913033517,240.16590478,0.00013497,2]
[383364058,1756913034182,500.0,0.00013497,2]
[383364185,1756913044656,500.0,0.00013497,2]
[383364189,1756913044713,500.0,0.00013497,2]
[383364192,1756913044769,500.0,0.00013497,2]
[383364304,1756913067423,500.0,0.00013497,2]
[383364305,1756913068574,500.0,0.00013497,2]
[383364306,1756913068648,500.0,0.00013497,2]
[383364307,1756913072018,90.29757247,0.00013497,2]
[383364308,1756913072050,409.70242753,0.00013497,2]
[383364309,1756913075216,500.0,0.00013497,2]
[383364310,1756913076404,500.0,0.00013497,2]
[383364311,1756913076463,500.0,0.00013497,2]
[383364312,1756913076501,500.0,0.00013497,2]
[383364313,1756913076549,500.0,0.00013497,2]
[383364314,1756913076613,249.67036453,0.00013497,2]
[383364315,1756913077282,500.0,0.00013497,2]
[383364316,1756913079386,500.0,0.00013497,2]
[383364317,1756913088224,1582.14372589,0.00013423,2]
[383364318,1756913094094,500.0,0.00013497,2]
[383364319,1756913094144,500.0,0.00013497,2]
[383364320,1756913094179,500.0,0.00013497,2]
[383364321,1756913094236,500.0,0.00013497,2]
[383364322,1756913094270,500.0,0.00013497,2]
[383364323,1756913094308,500.0,0.00013497,2]
[383364324,1756913094343,500.0,0.00013497,2]
[383364325,1756913095473,500.0,0.00013497,2]
[383364326,1756913097158,258.49348205,0.00013497,2]
[383364327,1756913097181,272.9009023,0.00013497,2]
[383364328,1756913102489,199.0,0.00013497,2]
[383364329,1756913102552,300.0,0.00013497,2]
[383364330,1756913109067,1200.0,0.00013497,2]
[383364331,1756913109272,500.0,0.00013497,2]
[383364332,1756913109353,500.0,0.00013497,2]
[383364333,1756913109446,500.0,0.00013497,2]
[383364334,1756913119386,500.0,0.00013497,2]
[383364335,1756913119424,500.0,0.00013497,2]
[383364336,1756913119467,500.0,0.00013497,2]
[383364337,1756913119506,500.0,0.00013497,2]
[383364338,1756913119542,500.0,0.00013497,2]
[383364339,1756913119583,500.0,0.00013497,2]
[383364340,1756913119616,500.0,0.00013497,2]
[383364341,1756913119657,500.0,0.00013497,2]
[383364342,1756913119691,500.0,0.00013497,2]
[383364343,1756913119726,500.0,0.00013497,2]
[383364344,1756913119767,541.64937974,0.00013497,2]
[383364345,1756913119800,607.76941618,0.00013497,2]
[383364346,1756913119835,378.69030178,0.00013497,2]
[383364347,1756913119862,121.30969822,0.00013497,2]
[383364348,1756913119904,500.0,0.00013497,2]
[383364349,1756913133599,281.2660427,0.00013497,2]
[383364350,1756913133635,500.0,0.00013497,2]
[383364351,1756913133674,500.0,0.00013497,2]
[383364352,1756913133719,450.0,0.00013497,2]
[383364353,1756913133765,500.0,0.00013497,2]
[383364354,1756913133809,500.0,0.00013497,2]
[383364355,1756913133851,208.2044856,0.00013497,2]
[383364356,1756913133887,500.0,0.00013497,2]
[383364357,1756913133933,500.0,0.00013497,2]
[383364358,1756913133976,500.0,0.00013497,2]
[383364359,1756913134031,650.0,0.00013497,2]
[383364360,1756913151407,500.0,0.00013497,2]
[383364361,1756913151461,550.0,0.00013497,2]
[383364362,1756913162205,154.98802286,0.00013295,2]
[383364363,1756913162723,300.0,0.00013497,2]
[383364364,1756913169356,300.0,0.00013497,2]
[383364368,1756913187117,300.0,0.00013497,2]
[383364369,1756913206704,151.0,0.000131,2]
[383364370,1756913207049,151.0,0.000128,2]
[383364371,1756913222884,300.0,0.00013497,2]
[383364374,1756913284300,1384.37576018,0.000134,2]
[383364377,1756913299598,197.86599044,0.00013497,2]
[383364378,1756913299625,102.13400956,0.00013497,2]
[383364381,1756913338530,3069.67216451,0.00013363,2]
[383364382,1756913346463,3069.67216451,0.00013363,2]
[383364384,1756913362402,3069.67216451,0.00013363,2]
[383364385,1756913371364,688.85949691,0.00013363,2]
[383364386,1756913371390,1241.46833858,0.00013363,2]
[383364387,1756913371944,-1131.82,0.00013498,2]
[383364388,1756913386581,410.57,0.00012329,2]
[383364389,1756913387790,3230.54777541,0.00013363,2]
[383364390,1756913397139,342.14,0.00012329,2]
[383364391,1756913402645,300.0,0.00013497,2]
[383364392,1756913402865,300.0,0.00013497,2]
[383364393,1756913402992,300.0,0.00013497,2]
[383364394,1756913403482,300.0,0.00013497,2]
[383364395,1756913407602,285.12,0.00012329,2]
[383364396,1756913408154,300.0,0.00013497,2]
[383364397,1756913410440,1200.0,0.00013497,2]
[383364398,1756913411342,790.98350647,0.00013363,2]
[383364399,1756913418149,237.6,0.00012329,2]
[383364400,1756913419429,2003.04871812,0.000134,2]
[383364401,1756913419454,1937.44812928,0.000134,2]
[383364402,1756913421342,3940.49684738,0.0001345,2]
[383364403,1756913428916,198.0,0.00012329,2]
[383364434,1756913438666,-7294.40496446,0.00013498,2]
[383364435,1756913438678,-46689.69319763,0.00013498,2]
[383364436,1756913438826,-216001.86768665,0.00013498,2]
[383364437,1756913438836,-3940.49684738,0.00013499,2]
[383364438,1756913438845,-151.0,0.000135,2]
[383364439,1756913438855,-1001.11438899,0.000135,2]
[383364440,1756913438865,-3940.49684738,0.00013549,2]
[383364441,1756913438875,-1033.0327619,0.00013598,2]
[383364442,1756913438885,-3940.49684738,0.00013598,2]
[383364443,1756913438895,-394.83022874,0.00013673,2]
[383364444,1756913438904,-500.0,0.00013673,2]
[383364445,1756913438913,-500.0,0.00013673,2]
[383364446,1756913438923,-500.0,0.00013673,2]
[383364447,1756913438932,-500.0,0.00013673,2]
[383364448,1756913438942,-500.0,0.00013673,2]
[383364449,1756913438951,-500.0,0.00013673,2]
[383364450,1756913438961,-400.0,0.00013698,2]
[383364451,1756913438970,-480.0,0.00013698,2]
[383364452,1756913438980,-480.0,0.00013698,2]
[383364453,1756913438989,-480.0,0.00013698,2]
[383364454,1756913438999,-480.0,0.00013698,2]
[383364455,1756913439008,-480.0,0.00013698,2]
[383364456,1756913439018,-480.0,0.00013698,2]
[383364457,1756913439027,-480.0,0.00013698,2]
[383364458,1756913439036,-480.0,0.00013698,2]
[383364459,1756913439046,-549.93758207,0.00013698,2]
[383364460,1756913439055,-480.0,0.00013698,2]
[383364461,1756913439065,-480.0,0.00013698,2]
[383364462,1756913439075,-480.0,0.00013698,2]
[383364463,1756913439089,-480.0,0.00013698,2]
[383364464,1756913439099,-480.0,0.00013698,2]
[383364465,1756913439108,-480.0,0.00013698,2]
[383364466,1756913439119,-492.66256254,0.00013698,2]
[383364467,1756913439128,-480.0,0.00013698,2]
[383364468,1756913439138,-480.0,0.00013698,2]
[383364469,1756913439147,-494.09355426,0.00013698,2]
[383364470,1756913439159,-480.0,0.00013698,2]
[383364471,1756913439169,-480.0,0.00013698,2]
[383364472,1756913439178,-480.0,0.00013698,2]
[383364473,1756913439187,-480.0,0.00013698,2]
[383364474,1756913439197,-480.0,0.00013698,2]
[383364475,1756913439206,-480.0,0.00013698,2]
[383364476,1756913439220,-503.25021848,0.00013698,2]
[383364477,1756913439229,-480.0,0.00013698,2]
[383364478,1756913439239,-480.0,0.00013698,2]
[383364479,1756913439250,-480.0,0.00013698,2]
[383364480,1756913439259,-480.0,0.00013698,2]
[383364481,1756913439269,-480.0,0.00013698,2]
[383364482,1756913439279,-480.0,0.00013698,2]
[383364483,1756913439288,-480.0,0.00013698,2]
[383364484,1756913439298,-480.0,0.00013698,2]
[383364485,1756913439307,-480.0,0.00013698,2]
[383364486,1756913439317,-480.0,0.00013698,2]
[383364487,1756913439327,-480.0,0.00013698,2]
[383364488,1756913439336,-480.0,0.00013698,2]
[383364489,1756913439346,-480.0,0.00013698,2]
[383364490,1756913439357,-480.0,0.00013698,2]
[383364491,1756913439366,-480.0,0.00013698,2]
[383364492,1756913439376,-480.0,0.00013698,2]
[383364493,1756913439385,-480.0,0.00013698,2]
[383364494,1756913439396,-480.0,0.00013698,2]
[383364495,1756913439406,-480.0,0.00013698,2]
[383364496,1756913439417,-480.0,0.00013698,2]
[383364497,1756913439427,-482.01937465,0.00013698,2]
[383364498,1756913439437,-480.0,0.00013698,2]
[383364499,1756913439446,-480.0,0.00013698,2]
[383364500,1756913439455,-480.0,0.00013698,2]
[383364501,1756913439465,-480.0,0.00013698,2]
[383364502,1756913439474,-480.0,0.00013698,2]
[383364503,1756913439485,-480.0,0.00013698,2]
[383364504,1756913439494,-480.0,0.00013698,2]
[383364505,1756913439504,-480.0,0.00013698,2]
[383364506,1756913439513,-480.0,0.00013698,2]
[383364507,1756913439522,-480.0,0.00013698,2]
[383364508,1756913439531,-480.0,0.00013698,2]
[383364509,1756913439541,-480.0,0.00013698,2]
[383364510,1756913439551,-500.0,0.00013698,2]
[383364511,1756913439561,-461.77366144,0.00013698,2]
[383364512,1756913439579,-480.0,0.00013698,2]
[383364513,1756913439588,-480.0,0.00013698,2]
[383364514,1756913439598,-480.0,0.00013698,2]
[383364515,1756913439608,-480.0,0.00013698,2]
[383364516,1756913439617,-480.0,0.00013698,2]
[383364517,1756913439627,-480.0,0.00013698,2]
[383364518,1756913439636,-480.0,0.00013698,2]
[383364519,1756913439646,-482.53308073,0.00013698,2]
[383364520,1756913439655,-480.0,0.00013698,2]
[383364521,1756913439665,-480.0,0.00013698,2]
[383364522,1756913439675,-480.0,0.00013698,2]
[383364523,1756913439684,-480.0,0.00013698,2]
[383364524,1756913439694,-480.0,0.00013698,2]
[383364525,1756913439703,-480.0,0.00013698,2]
[383364526,1756913439713,-480.0,0.00013698,2]
[383364527,1756913439722,-480.0,0.00013698,2]
[383364528,1756913439732,-480.0,0.00013698,2]
[383364529,1756913439741,-480.0,0.00013698,2]
[383364530,1756913439751,-480.0,0.00013698,2]
[383364531,1756913439761,-480.0,0.00013698,2]
[383364532,1756913439771,-480.0,0.00013698,2]
[383364533,1756913439780,-480.0,0.00013698,2]
[383364534,1756913439790,-495.7,0.00013698,2]
[383364535,1756913439805,-480.0,0.00013698,2]
[383364536,1756913439815,-480.0,0.00013698,2]
[383364537,1756913439825,-480.0,0.00013698,2]
[383364538,1756913439835,-483.50344514,0.00013698,2]
[383364539,1756913439845,-480.0,0.00013698,2]
[383364540,1756913439855,-480.0,0.00013698,2]
[383364541,1756913439865,-480.0,0.00013698,2]
[383364542,1756913439876,-480.0,0.00013698,2]
[383364543,1756913439885,-480.0,0.00013698,2]
[383364544,1756913439895,-480.0,0.00013698,2]
[383364545,1756913439904,-480.0,0.00013698,2]
[383364546,1756913439914,-480.0,0.00013698,2]
[383364547,1756913439924,-506.66,0.00013698,2]
[383364548,1756913439934,-480.0,0.00013698,2]
[383364549,1756913439943,-493.77312248,0.00013698,2]
[383364550,1756913439954,-480.0,0.00013698,2]
[383364551,1756913439963,-480.0,0.00013698,2]
[383364552,1756913439973,-480.0,0.00013698,2]
[383364553,1756913439983,-480.0,0.00013698,2]
[383364554,1756913439992,-480.0,0.00013698,2]
[383364555,1756913440002,-480.0,0.00013698,2]
[383364557,1756913440012,-480.0,0.00013698,2]
[383364559,1756913440022,-480.0,0.00013698,2]
[383364560,1756913440031,-480.0,0.00013698,2]
[383364562,1756913440041,-480.0,0.00013698,2]
[383364563,1756913440051,-480.0,0.00013698,2]
[383364564,1756913440061,-480.0,0.00013698,2]
[383364565,1756913440071,-480.0,0.00013698,2]
[383364566,1756913440082,-480.0,0.00013698,2]
[383364567,1756913440095,-480.0,0.00013698,2]
[383364568,1756913440106,-480.0,0.00013698,2]
[383364569,1756913440116,-480.0,0.00013698,2]
[383364570,1756913440126,-481.66727339,0.00013698,2]
[383364571,1756913440136,-480.0,0.00013698,2]
[383364572,1756913440146,-480.0,0.00013698,2]
[383364573,1756913440156,-480.0,0.00013698,2]
[383364574,1756913440165,-480.0,0.00013698,2]
[383364575,1756913440175,-480.0,0.00013698,2]
[383364576,1756913440185,-480.0,0.00013698,2]